Cogmind - Beta 10.2 @@@ ROGUE MODE // 2020.11.28 @ 12:03:38 // Halloween2020/ForbiddenLore Player: 277 Result: Destroyed by Y-54 Guardian with Gatling Laser Performance ------------- Evolutions (3) 1500 Regions Visited (4) 800 Robots Destroyed (21) 105 Value Destroyed (309) 309 Prototype IDs (3) 60 Alien Tech Used (0) 0 Bonus (0) 0 TOTAL SCORE: 2774 Bonus ------- None Cogmind --------- Core Integrity 0/700 Matter 264/300 Energy 80/100 System Corruption 4% Temperature Cool (6) Movement Treading (170) Location -7/Factory Parts ------- > --- POWER (1) -------- (None) > --- PROPULSION (4) --- Armored Treads > --- UTILITY (6) ------ Signal Interpreter System Shield > --- WEAPON (2) ------- Katana > --- INVENTORY (4) ---- Large Matter Pod (150) Improved EM Pulse Cannon Peak State ------------ > --- POWER ------------ Improved Deuterium Engine > --- PROPULSION ------- Flight Unit Flight Unit Flight Unit Flight Unit > --- UTILITY ---------- Structural Scanner Signal Interpreter Advanced Terrain Scanner Targeting Computer Targeting Computer System Shield > --- WEAPON ----------- Arc Projector > --- INVENTORY -------- Light Ion Engine Large Matter Pod Light Armor Plating Improved EM Pulse Cannon [Rating: 22] Favorites ----------- Power Light Ion Engine Engine Light Ion Engine Propulsion Flight Unit Treads Light Treads Leg Aluminum Leg Flight Unit Flight Unit Utility Structural Scanner Device Structural Scanner Processor Signal Interpreter Hackware System Shield Protection Light Armor Plating Weapon EM Pulse Gun Energy Gun EM Pulse Gun Impact Weapon Flail Slashing Weapon Katana Build | -11 -10 -9 -8 -7 ------- Run | Scr Mat Mat Mat Fac Slots Evolved 6 | . . 2 2 2 Power . | . . . . . Propulsion 2 | . . 1 . 1 Utility 4 | . . 1 2 1 Weapon . | . . . . . Parts Attached 33 | 7 8 1 7 10 Power 7 | 1 2 1 . 3 Engine 7 | 1 2 1 . 3 Core . | . . . . . Reactor . | . . . . . Propulsion 11 | 4 2 . 2 3 Treads 3 | 2 . . . 1 Leg 3 | 2 . . . 1 Wheel . | . . . . . Hover . | . . . . . Flight 5 | . 2 . 2 1 Utility 9 | . 3 . 4 2 Device 3 | . 2 . . 1 Storage . | . . . . . Processor 4 | . 1 . 3 . Hackware 1 | . . . 1 . Protection 1 | . . . . 1 Artifact . | . . . . . Weapon 6 | 2 1 . 1 2 Energy Gun 4 | 2 1 . 1 . Energy Cannon . | . . . . . Ballistic Gun . | . . . . . Ballistic Cannon . | . . . . . Launcher . | . . . . . Special Weapon . | . . . . . Impact Weapon 1 | . . . . 1 Slashing Weapon 1 | . . . . 1 Piercing Weapon . | . . . . . Special Melee Weapon . | . . . . . Unidentified Prototypes . | . . . . . Parts Lost 16 | . . . 2 14 Power 2 | . . . . 2 Propulsion 5 | . . . . 5 Utility 5 | . . . . 5 Weapon 4 | . . . 2 2 Highest Loss Streak 6 | . . . 2 6 Average Slot Usage (%) 77 | . 90 77 83 60 Engine 8 | . 11 11 9 4 Leg 6 | . 14 . . . Flight 15 | . 13 22 19 14 Device 12 | . 15 11 9 11 Processor 13 | . 6 11 32 15 Hackware 2 | . . . . 7 Energy Gun 16 | . 27 22 13 3 Naked Turns . | . . . . . Heaviest Build 16 | 9 11 8 8 16 Greatest Support 20 | 20 20 8 12 20 Greatest Overweight (x) 1 | 1 . . . 1 Average Overweight (x) . | . . . . . Largest Inventory Capacity 4 | 4 4 4 4 4 Average Capacity 4 | 4 4 4 4 4 Most Carried 4 | 1 4 4 4 4 Average Carried 3 | . 3 4 3 3 Final Capacity 4 | 4 4 4 4 4 Final Carried 4 | . 4 4 3 2 Class Distribution -------------------- 92% | Mutant 7% | Sprinter Dominant Class ---------------- Mutant | -10/Materials Mutant | -9/Materials Mutant | -8/Materials Mutant | -7/Factory Resources | -11 -10 -9 -8 -7 ----------- Run | Scr Mat Mat Mat Fac Matter Collected 571 | 246 251 13 48 13 Remotely . | . . . . . Salvage Created 727 | . 405 129 193 . Parts 64 | . 40 4 20 . Haulers Intercepted 2 | . 2 . . . Recyclers Shooed 3 | . 3 . . . Parts Field Recycled . | . . . . . Retrieved Matter . | . . . . . Parts Self-Destructed . | . . . . . Prevented . | . . . . . Kills | -11 -10 -9 -8 -7 ------- Run | Scr Mat Mat Mat Fac Combat Hostiles Destroyed 11 | . 5 . 6 . Guns 10 | . 4 . 6 . AOE 1 | . 1 . . . Classes Destroyed 9 | . 8 . 1 . Worker 2 | . 2 . . . Builder 2 | . 1 1 . . Tunneler 1 | . 1 . . . Hauler 2 | . 2 . . . Recycler 2 | . 1 1 . . Watcher 1 | . 1 . . . Swarmer 7 | . 3 . 4 . Grunt 2 | . 2 . . . Sentry 2 | . . . 2 . Best Kill Streak 9 | . 9 2 4 . Combat Bots Only 4 | . 3 . 4 . Max Kills in Single Turn 2 | . 2 1 1 . Gunslinging . | . . . . . Exploded 1 | . 1 . . . Melee . | . . . . . Uniques/NPCs Destroyed . | . . . . . Combat | -11 -10 -9 -8 -7 -------- Run | Scr Mat Mat Mat Fac Damage Taken 1673 | . 167 . 144 1362 Core 792 | . 17 . 67 708 Absorbed by Shields 20 | . . . . 20 Core Remaining (%) 95 | 100 93 100 87 . Volleys Fired 50 | . 29 8 12 1 Largest 2 | . 2 2 2 1 Hottest 80 | . 80 80 80 55 Shots Fired 81 | . 50 16 14 1 Gun 81 | . 50 16 14 1 Cannon . | . . . . . Launcher . | . . . . . Special . | . . . . . Kinetic . | . . . . . Thermal . | . . . . . Explosive . | . . . . . Electromagnetic 81 | . 50 16 14 1 Robot Hit Streak 12 | . 12 7 5 6 Robot Miss Streak 2 | . 2 2 1 . Penetration Max . | . . . . . Secondary Targets . | . . . . . Shots Hit Robots 55 | . 23 10 12 10 Core Hits 30 | . 16 2 9 3 Critical Hits . | . . . . . Critical Kills . | . . . . . Critical Parts Destroyed . | . . . . . Melee Attacks 13 | . . . . 13 Impact 12 | . . . . 12 Slashing 1 | . . . . 1 Piercing . | . . . . . Sneak Attacks . | . . . . . Combat Hostiles . | . . . . . Follow-up Attacks . | . . . . . Damage Inflicted 1023 | . 533 163 132 195 Guns 591 | . 321 129 132 9 Cannons . | . . . . . Explosions 246 | . 212 34 . . Melee 186 | . . . . 186 Ramming . | . . . . . Kinetic . | . . . . . Thermal 246 | . 212 34 . . Explosive . | . . . . . Electromagnetic 591 | . 321 129 132 9 Impact 156 | . . . . 156 Slashing 30 | . . . . 30 Piercing . | . . . . . Highest Corruption 4 | . . . . 4 Average Corruption 1 | . . . . 1 Corruption Purged . | . . . . . Effects 1 | . . . . 1 Matter Fused 1 | . . . . 1 Overload Shots . | . . . . . Overflow Damage . | . . . . . Projectiles . | . . . . . Explosions . | . . . . . Melee . | . . . . . Knockbacks 1 | . . . . 1 Impact 1 | . . . . 1 Kinetic . | . . . . . Secondary . | . . . . . Self-Inflicted Damage 55 | . 55 . . . Shots 2 | . 2 . . . Rammed . | . . . . . Targets Rammed . | . . . . . Kicked . | . . . . . Crushed . | . . . . . Highest Temperature 148 | . 148 120 28 16 Average Temperature 42 | . 45 60 11 14 Received Heat Transfer 246 | . 36 . 27 183 Siege Activations . | . . . . . Robots Corrupted . | . . . . . Combat Hostiles . | . . . . . Parts Fried 1 | . . 1 . . Impact Corruptions . | . . . . . Robots Melted . | . . . . . Combat Hostiles . | . . . . . Parts Melted . | . . . . . Heat Transferred 150 | . 150 . . . Parts Sabotaged . | . . . . . Parts Stolen . | . . . . . Parts Stripped . | . . . . . Power Chain Reactions 4 | . 3 1 . . Missiles Intercepted . | . . . . . Alert | -11 -10 -9 -8 -7 ------- Run | Scr Mat Mat Mat Fac Peak Influence 320 | . 233 185 320 160 Initial 98 | . . 98 78 77 Average 111 | . 96 141 168 111 Maximum Alert Level 1 | . 1 . 1 . Low Security (%) 94 | 100 96 100 73 100 Level 1 5 | . 3 . 26 . Level 2 . | . . . . . Level 3 . | . . . . . Level 4 . | . . . . . Level 5 . | . . . . . High Security . | . . . . . Max Security . | . . . . . Squads Dispatched 2 | . 1 . 1 . Investigation 1 | . 1 . . . Extermination . | . . . . . Reinforcement . | . . . . . Assault . | . . . . . Garrison 1 | . . . 1 . Intercept . | . . . . . Construction Impeded . | . . . . . Haulers Reinforced . | . . . . . Stealth | -11 -10 -9 -8 -7 --------- Run | Scr Mat Mat Mat Fac Distress Signals 3 | . . 1 1 1 Communications Jammed . | . . . . . Distress Signals . | . . . . . Times Spotted 39 | . 9 7 13 10 Peak Tracking Total 10 | . 6 6 10 7 Tactical Retreats 5 | . . . 2 3 Traps | -11 -10 -9 -8 -7 ------- Run | Scr Mat Mat Mat Fac Traps Triggered 1 | . . . . 1 Indirectly . | . . . . . Trap Hack Attempts . | . . . . . Triggered . | . . . . . Disarmed . | . . . . . Reprogrammed . | . . . . . Reused . | . . . . . Traps Extracted . | . . . . . Installed . | . . . . . Triggered . | . . . . . Machines | -11 -10 -9 -8 -7 ---------- Run | Scr Mat Mat Mat Fac Machines Disabled 3 | . 2 1 . . Max in Single Turn 1 | . 1 1 . . Machines Sabotaged . | . . . . . Garrisons Compromised . | . . . . . Overloaded Fab Kills . | . . . . . Fab Network Shutdowns . | . . . . . Hacking | -11 -10 -9 -8 -7 --------- Run | Scr Mat Mat Mat Fac Machines Accessed 13 | . 6 1 4 2 Terminals 9 | . 3 . 4 2 Fabricators . | . . . . . Repair Stations 1 | . 1 . . . Recycling Units 2 | . 2 . . . Scanalyzers 1 | . . 1 . . Garrison Access . | . . . . . Total Hacks 44 | . 17 4 18 5 Successful 29 | . 13 4 9 3 Failed 15 | . 4 . 9 2 Catastrophic . | . . . . . Database Lockouts . | . . . . . Manual 18 | . 10 . 7 1 Terminals 33 | . 10 . 18 5 Fabricators . | . . . . . Repair Stations 5 | . 5 . . . Recycling Units 2 | . 2 . . . Scanalyzers 4 | . . 4 . . Garrison Access . | . . . . . Terminal Hacks 13 | . 4 . 6 3 Part Schematic 2 | . 2 . . . Robot Schematic 1 | . . . . 1 Prototype ID Bank 1 | . . . . 1 Terminal Index 2 | . 1 . 1 . Unreport Threat 1 | . . . 1 . Locate Traps 1 | . 1 . . . Zone Layout 5 | . . . 4 1 Fabricator Hacks . | . . . . . Repair Station Hacks 5 | . 5 . . . Scan Component 3 | . 3 . . . Repair 2 | . 2 . . . Recycling Unit Hacks . | . . . . . Scanalyzer 4 | . . 4 . . Insert Component 2 | . . 2 . . Analyze 2 | . . 2 . . Garrison Access Hacks . | . . . . . Unauthorized Hacks 7 | . 4 . 3 . Terminals 5 | . 2 . 3 . Track 3 | . 1 . 2 . Botnet 2 | . 1 . 1 . Fabricators . | . . . . . Repair Stations . | . . . . . Recycling Units 2 | . 2 . . . Mask 2 | . 2 . . . Scanalyzers . | . . . . . Garrison Access . | . . . . . Data Cores Recovered . | . . . . . Used . | . . . . . Hacking Detections 11 | . 4 1 4 2 Full Trace Events 1 | . 1 . . . Feedback Events . | . . . . . Feedback Blocked . | . . . . . Robot Schematics Acquired 1 | . . . . 1 Robots Built . | . . . . . Matter . | . . . . . Time . | . . . . . Total Robot Build Rating . | . . . . . Part Schematics Acquired 4 | . 2 2 . . Parts Built . | . . . . . Matter . | . . . . . Time . | . . . . . Total Part Build Rating . | . . . . . Parts Repaired 2 | . 2 . . . Time 52 | . 52 . . . Parts Recycled . | . . . . . Recycled Matter . | . . . . . Retrieved Matter . | . . . . . Retrieved Components . | . . . . . Parts Scanalyzed 2 | . . 2 . . Part Schematics Acquired 2 | . . 2 . . Parts Damaged . | . . . . . Bothacking | -11 -10 -9 -8 -7 ------------ Run | Scr Mat Mat Mat Fac Used RIF Installer . | . . . . . Robots Hacked . | . . . . . Non-combat . | . . . . . Combat . | . . . . . Robot Hacks Applied . | . . . . . Relay Couplers Released . | . . . . . Robots Rewired . | . . . . . Allies Hacked . | . . . . . Hacks Repelled . | . . . . . Allies | -11 -10 -9 -8 -7 -------- Run | Scr Mat Mat Mat Fac Total Allies . | . . . . . Largest Group . | . . . . . Highest-Rated Group . | . . . . . Highest-Rated Ally . | . . . . . Total Orders . | . . . . . Ally Attacks . | . . . . . Total Damage . | . . . . . Kills . | . . . . . Allies Corrupted . | . . . . . Allies Melted . | . . . . . Intel | -11 -10 -9 -8 -7 ------- Run | Scr Mat Mat Mat Fac Robot Analysis Total . | . . . . . Derelict Logs Recovered . | . . . . . Drone Launches . | . . . . . Drone Recoveries . | . . . . . Exploration | -11 -10 -9 -8 -7 ------------- Run | Scr Mat Mat Mat Fac Turns Passed 880 | 46 334 87 130 283 Spaces Moved 1192 | 36 286 158 215 497 Core 145 | 20 . . . 125 Treads 1 | . . . . 1 Legs 122 | 16 100 . . 6 Wheels . | . . . . . Hover . | . . . . . Flight 924 | . 186 158 215 365 Fastest Speed 31 | 50 37 37 34 31 Average Speed 48 | 97 66 37 36 43 Slowest Speed 170 | 120 120 37 37 170 Overloaded Moves . | . . . . . Propulsion Burnouts . | . . . . . Robots Hopped 7 | . . 1 1 5 Cave-ins Triggered . | . . . . . Exploration Rate (%) 22 | 3 42 20 27 21 Regions Visited 4 Branch Regions . Pre-discovered Areas . | . . . . . Known Exits Taken 3 | . 1 1 1 . Unknown Exits Taken 1 | 1 . . . . Scrap Searched . | . . . . . Spaces Dug . | . . . . . Terrain Destroyed 13 | . 13 . . . Melee . | . . . . . Projectile . | . . . . . AOE 13 | . 13 . . . Terrain Rammed . | . . . . . Walls Destroyed . | . . . . . Machines Disabled . | . . . . . Actions | -11 -10 -9 -8 -7 --------- Run | Scr Mat Mat Mat Fac Total 1381 | 45 379 169 250 538 Wait 81 | . 46 3 12 20 Move 1174 | 35 285 155 212 487 Hop 7 | . . 1 1 5 Pick Up 11 | 1 6 . 3 1 Fast Attach 22 | 6 7 . 3 6 Attach 8 | 1 1 . 3 3 Detach 1 | . . . . 1 Swap 3 | . . 1 1 1 Drop 11 | 2 5 1 3 . Fire 50 | . 29 8 12 1 Melee 13 | . . . . 13 Ram . | . . . . . Kick . | . . . . . Crush . | . . . . . Escape Stasis . | . . . . . Rewire . | . . . . . Trap . | . . . . . Miscellaneous . | . . . . . Route ------- -11/Scrapyard -10/Materials (discovered 2 exits: *Mat / [*Min]) -9/Materials -8/Materials -7/Factory (discovered 1 exit: *Low) History --------- Turn | Location | Event 12 | -11/Scrapyard | Discovered new exit (range 16) 47 | -11/Scrapyard | Entered Materials 231 | -10/Materials | Discovered new exit (range 12) 256 | -10/Materials | Discovered new exit (range 3) 257 | -10/Materials | Identified exit to Materials 286 | -10/Materials | Repaired EM Pulse Gun 308 | -10/Materials | Build established: Mutant 323 | -10/Materials | Repaired Lgt. Ion Engine? 381 | -10/Materials | Entered another Materials area 381 | -9/Materials | Evolved 2 slots: Propulsion x1, Utility x1 463 | -9/Materials | Discovered new exit (range 16) 468 | -9/Materials | Identified exit to Materials 468 | -9/Materials | Entered another Materials area 468 | -8/Materials | Evolved 2 slots: Utility x2 542 | -8/Materials | Garrison activated, responded to threat 588 | -8/Materials | Discovered new exit (range 4) 589 | -8/Materials | Identified exit to Factory 598 | -8/Materials | Entered Factory 598 | -7/Factory | Evolved 2 slots: Propulsion x1, Utility x1 654 | -7/Factory | Discovered new exit (range 9) 759 | -7/Factory | Lost 3 parts (2n1w) 766 | -7/Factory | Identified exit to Lower Caves 794 | -7/Factory | Lost 3 parts (1p2n) 821 | -7/Factory | Core integrity fell below 50% 865 | -7/Factory | Lost 6 parts (1p1n3u1w) 869 | -7/Factory | Core integrity fell below 20% 881 | -7/Factory | Destroyed by Y-54 Guardian with Gatling Laser Last Messages --------------- 00829_ Penetrated by Slug. 00834_ Lgt. Armor Plating destroyed. 00835_ K-01 Serf cleans the Fabricator. 00841_ T-07 Excavator is excavating. 00851_ System corrupted: Matter fused (-7). 00859_ T-07 Excavator is excavating. 00870_ K-01 Serf collects debris. 00870_ K-01 Serf cleans the Power Conduit. 00870_ K-01 Serf collects debris. 00870_ Triggered Stasis Trap. 00870_ A bubble of rippling energy engulfs the area. 00870_ Field strength at 94. 00871_ Penetrated by Slug. 00871_ Chain reaction triggered in Lgt. Ion Engine. 00871_ K-01 Serf destroyed. 00871_ Extracted 13 matter. 00872_ K-01 Serf collects debris. 00875_ Acquired Arm. Treads. 00878_ Structural Scanner destroyed. 00878_ Acquired Katana. Map ----- +----------------------------------------------------+ | ?????????????????????????????????????????????????? | | ?????????????????????????????????????????????????? | | ?????????????????????????????????????????????????? | | ?????????????????????????????????????????????????? | | ?????????????????????????????????????????????????? | | ?????????????????????????????????????????????????? | | ?????????????????????????????????????????????????? | | ?????????????????????????????????????????????????? | | ?????????????????????????????????????????????????? | | ?????????????????????????????????????????????????? | | ?????????????????????????????????????????????????? | | ?????????????????????????????????????????????????? | | ?????????????????????????????????????????????????? | | ????????????????????? ?????????????????????????? | | ??????????????????? ?????????????????????????? | | ??????????????????# ?????????????????????????? | | ??????????????????# ?????????????????????????? | | ??????????????????# #????????????????????????? | | ??????????????????# #???????????????????????## | | ??????????????????# ###??????????????????####" | | ??????????????????+ # ########???????????# | | ??????????????????# # #???????????# | | ??????????????????# # #???????????# | | ??????????????????# #/== #???????????# " | | ?????????#????????# #Y== """ #???????????# " | | ?????????# ??????# #@ """ #???????????# " | | ?????????# ?????# # R" #?####??????# | | ?????????# ????+ + """ #?# ??????# | | ?????????# ??# # "" #### ######## ! | | ?????????# ?# # ## ! | | ?????????# # ########### | | ?????????# " ^ | | ??????#+########### ! | | ??? ! # % """"""""" | | ??? " = ############ | | ??? " """"""""" #??????????? | | ??? # #??????????? | | ???? # * #??????????? | | ???? ! ! ?# ###### #??????????? | | ????? ?# #????# #??????????? | | ????? ??# #????# #??????????? | | ????? !??# #????#### #??????????? | | ??????#########???# #???????/ +??????????? | | ??????????????????# #???????# #??????????? | | ??????????????????# #???????# +??????????? | | ??????????????????# # ??????# #??????????? | | ??????????????????# # ????# #??????????? | | ????????????????#?# # ! ??# #??????????? | | ????????????????# # / # ####???????? | | ????????????????# # "" ! + #???????? | +----------------------------------------------------+ Best States ------------- Heat Dissipation 34 Energy Generation 16 Energy Capacity 290 Matter Stores 300 Matter Capacity 300 Sight Range 16 Terrain Scan Range 20 Terrain Scan Density 85 Armor Coverage 150 Evasion (%) 63 Targeting Accuracy 10 Recoil Reduction 1 Defensive Hacking 10 Item Schematics ----------------- Flight Unit | -10/Materials | Hacked Lgt. Ion Engine | -10/Materials | Hacked Lgt. Armor Plating | -9/Materials | Scanalyzed Lrg. Matter Pod | -9/Materials | Scanalyzed Robot Schematics ------------------ A-02 Transporter | -7/Factory | Hacked Fabricated ------------ Nothing Alien Tech Used ----------------- None Achievements -------------- None Challenges ------------ None Game ------ Seed HugeGravitonDiverter Manual? 0 Play Time 00:31:27 Cumulative 231.8 hours Start 2020.11.28 @ 11:34:06 End 2020.11.28 @ 12:03:38 Sessions 1 Manual Loads 0 Difficulty Rogue Special Mode Halloween2020/ForbiddenLore Game No. 165 Rogue 165 Adventurer 0 Explorer 0 Win Type - Total 1 Types 1/0/0/0/0/0/0/0/0 Lore% 64 Gallery% 71 Achievement% 51 Wizard Run 0 Options --------- ASCII 0 Keyboard 0 Movement Numpad Keybinds 0 Fullscreen 1 Font 18/SmallcapsGlow Map View 76x50 Tactical HUD 1 Map Filters NONE Filters NONE Steam 1 RUN: eb82beac-39ed-4928-ba48-f6068ad25783